bitfinex-derivatives/quotes_ETHF0:USTF0_20260112
["timestamp","ask_amount","ask_price","bid_price","bid_amount"]
[1768204936364,0.87513627,3136.0,3135.2,2.385]
[1768204936557,0.00289425,3136.1,3135.3,0.14580191]
[1768204936756,0.00289425,3136.1,3135.0,0.15969]
[1768204936958,0.87547827,3136.0,3134.9,2.385]
[1768204937157,0.87547827,3135.9,3134.9,2.385]
[1768204937358,0.87547827,3135.8,3134.9,2.385]
[1768204937558,0.87547827,3135.7,3134.9,2.385]
[1768204937759,0.00289425,3136.1,3134.9,2.385]
[1768204937963,0.87580273,3136.0,3134.9,2.385]
[1768204938158,0.87580273,3135.9,3134.9,2.385]
[1768204938364,0.87580273,3135.8,3134.5,0.14580191]
[1768204938563,0.87580273,3135.7,3134.5,2.384]
[1768204940669,0.87580273,3135.6,3134.5,2.384]
[1768204940966,0.87580273,3135.5,3134.3,0.30553191]
[1768204941169,0.87580273,3135.4,3134.5,2.385]
[1768204941371,0.87580273,3135.3,3134.5,2.385]
[1768204941574,0.13874792,3136.1,3134.5,2.385]
[1768204941763,0.87655143,3136.0,3134.5,2.385]
[1768204941972,1.0124051,3135.9,3134.5,2.385]
[1768204942171,0.87655143,3135.8,3134.5,2.385]
[1768204943064,0.87655143,3135.8,3134.3,0.30553191]
[1768204943271,0.13585367,3135.7,3134.3,0.15973]
[1768204943473,0.87655143,3135.6,3134.3,0.15973]
[1768204944266,1.0124051,3135.6,3134.3,0.15973]
[1768204944466,0.87655143,3135.5,3134.3,0.15973]
[1768204945468,0.87655143,3135.5,3134.1,2.3915614]
[1768204945469,0.13585367,3135.4,3134.1,2.3915614]
[1768204945671,0.87655143,3135.3,3134.1,2.3915614]
[1768204946460,0.87655143,3135.3,3134.1,2.3925614]
[1768204946659,0.87642794,3135.2,3134.1,2.3925614]
[1768204946873,0.87642794,3135.1,3134.1,2.3925614]
[1768204947073,0.87642794,3135.0,3134.1,2.3925614]
[1768204947376,0.87642794,3134.9,3134.1,2.3935614]
[1768204947569,0.13585367,3135.4,3134.1,2.3935614]
[1768204947873,1.01214827,3135.3,3134.1,2.3935614]
[1768204948076,0.8762946,3135.2,3134.1,2.3935614]
[1768204948277,0.8762946,3135.1,3134.1,2.3935614]
[1768204948478,0.8762946,3135.0,3134.1,2.3935614]
[1768204948669,0.8762946,3134.9,3134.1,2.3935614]
[1768204948966,0.8762946,3134.8,3134.1,2.3935614]
[1768204949169,0.13585367,3135.3,3134.1,2.3935614]
[1768204949374,0.87599839,3135.2,3134.1,2.3935614]
[1768204949674,0.87599839,3135.1,3134.1,2.3935614]
[1768204949872,0.87599839,3135.0,3134.1,2.3935614]
[1768204950071,0.87599839,3134.9,3134.1,2.3935614]
[1768204950266,0.87599839,3134.8,3134.1,2.3935614]
[1768204950471,0.13585367,3135.3,3134.1,0.0035614]
[1768204950678,0.13585367,3135.1,3134.1,0.0035614]
[1768204950880,0.87584833,3135.0,3134.1,0.0035614]
[1768204951180,0.87584833,3134.9,3134.1,0.0035614]
[1768204951476,0.87584833,3134.8,3134.1,0.0035614]
[1768204951682,0.87584833,3134.7,3134.1,0.0035614]
[1768204951982,0.13585367,3135.1,3134.1,0.0035614]
[1768204952277,0.87560494,3135.0,3134.1,0.0035614]
[1768204952480,0.87560494,3134.9,3134.1,0.0035614]
[1768204952779,0.87560494,3134.8,3134.1,0.0035614]
[1768204952969,0.87560494,3134.7,3134.1,0.0035614]
[1768204953171,0.13585367,3135.1,3134.1,0.0035614]
[1768204953373,0.8752251,3135.0,3134.1,0.0035614]
[1768204953578,0.8752251,3134.9,3134.1,0.0035614]
[1768204953780,0.8752251,3134.8,3134.1,0.0035614]
[1768204953981,0.8752251,3134.7,3134.1,0.0035614]
[1768204954177,0.13585367,3135.5,3134.1,0.0035614]
[1768204954377,0.87508261,3135.4,3134.1,0.0035614]
[1768204954570,0.87508261,3135.3,3134.1,0.0035614]
[1768204954771,0.87508261,3135.2,3134.1,0.0035614]
[1768204955078,0.87508261,3135.1,3134.1,0.14527572]
[1768204955269,0.87508261,3135.0,3134.1,0.14527572]
[1768204955471,0.87508261,3134.9,3134.1,0.14527572]
[1768204955779,2.25626433,3135.8,3134.1,0.14527572]
[1768204956082,0.87426309,3135.7,3134.1,0.14527572]
[1768204956278,0.87426309,3135.6,3134.1,0.14527572]
[1768204956576,0.00289425,3136.1,3134.7,0.14171432]
[1768204956772,0.87469851,3136.0,3134.8,5.72871432]
[1768204956973,0.00289425,3136.1,3134.9,0.14171432]
[1768204957675,0.00289425,3136.1,3135.2,0.14171432]
[1768204957878,2.25626433,3137.4,3135.2,0.14171432]
[1768204958280,0.87469997,3137.3,3135.2,0.14171432]
[1768204958475,0.87469997,3137.2,3135.3,0.15968]
[1768204958786,0.87469997,3137.1,3135.4,0.14171432]
[1768204959090,0.87469997,3137.0,3135.4,0.14171432]
[1768204959281,0.87469997,3136.9,3135.4,0.14171432]
[1768204959486,0.00410344,3137.2,3135.5,0.14171432]
[1768204959687,0.87367685,3137.1,3135.5,0.14171432]
[1768204959982,0.87367685,3137.0,3135.6,0.14171432]
[1768204960187,0.00410344,3137.2,3135.6,0.14171432]
[1768204960384,0.87317459,3137.1,3135.6,0.14171432]
[1768204960582,0.00410344,3137.2,3135.6,0.14171432]
[1768204960782,0.87317497,3137.1,3135.6,0.14171432]
[1768204960980,0.00410344,3137.2,3135.6,0.14171432]
[1768204963884,0.00410344,3137.2,3135.6,0.30137432]
[1768204964087,0.00410344,3137.2,3135.7,0.14171432]
[1768204964390,0.00410344,3137.2,3135.8,0.14171432]
[1768204964590,0.00410344,3137.2,3135.9,2.388]
[1768204964890,0.00410344,3137.2,3136.0,0.14171432]
[1768204965089,0.00410344,3137.2,3136.2,0.14171432]
[1768204966188,0.13954876,3138.0,3136.3,0.14171432]
[1768204966391,0.13954876,3138.8,3136.3,0.14171432]
[1768204966593,0.13954876,3138.6,3136.3,0.14171432]
[1768204966783,0.87085419,3138.5,3136.3,0.14171432]
[1768204966988,1.01040295,3138.5,3136.3,0.14171432]
[1768204967187,0.87085419,3138.4,3136.6,0.14171432]
[1768204967390,0.00314057,3138.5,3137.0,0.14171432]
[1768204967584,0.00314057,3138.5,3137.2,0.14171432]
[1768204967985,0.00314057,3138.5,3137.3,3.192]
[1768204968183,0.00314057,3138.5,3137.4,0.14171432]
[1768204968795,0.14268933,3138.5,3136.4,40.94171432]
[1768204969088,0.14268933,3138.5,3136.5,5.576]
[1768204969392,0.14268933,3138.5,3136.5,5.71771432]
[1768204971694,0.14268933,3138.5,3136.6,0.14171432]
[1768204971894,0.14268933,3138.5,3136.6,0.30132432]
[1768204972190,0.14268933,3138.5,3136.7,0.14171432]
[1768204972392,0.14268933,3138.5,3136.8,0.14171432]
[1768204972592,0.00314057,3138.5,3136.8,0.14171432]
[1768204973398,0.13954876,3139.7,3136.8,0.14171432]
[1768204973588,0.13954876,3139.5,3137.7,0.15955]
[1768204973998,0.13954876,3139.5,3137.8,2.394]
[1768204974191,0.13954876,3139.3,3137.8,2.394]
[1768204974398,0.14337388,3139.3,3137.8,2.393]
[1768204974590,0.13954876,3139.2,3137.7,2.393]
[1768204974791,0.13954876,3139.2,3137.0,0.15959]
[1768204974991,0.00382512,3139.3,3137.2,0.15958]
[1768204974992,0.13954876,3139.0,3137.2,0.15958]
[1768204975287,0.13954876,3139.0,3137.3,0.14171432]
[1768204975483,0.13954876,3139.0,3137.5,0.15956]
[1768204975684,0.00382512,3139.3,3137.5,0.30127432]
[1768204975899,0.00382512,3139.3,3137.6,0.14171432]
[1768204977092,0.00382512,3139.3,3137.6,0.30127432]
[1768204977293,0.00382512,3139.3,3137.7,0.30126432]
[1768204977891,0.00382512,3139.3,3137.8,0.14171432]
[1768204980305,0.14337388,3139.3,3137.8,2.389]
[1768204980599,0.13954876,3139.2,3137.6,2.389]
[1768204981001,0.13954876,3139.2,3137.4,0.14171432]
[1768204981304,0.00382512,3139.3,3137.4,0.14171432]
[1768204981305,0.13954876,3139.0,3137.4,0.14171432]
[1768204982309,0.8680568,3138.9,3137.4,0.14171432]
[1768204982601,0.13954876,3139.0,3137.4,0.14171432]
[1768204982902,0.86805748,3138.9,3137.4,0.14171432]
[1768204983102,0.13954876,3139.0,3137.4,0.14171432]
[1768204983304,0.86885002,3138.9,3137.4,0.14171432]
[1768204983503,0.86885002,3138.8,3137.4,0.14171432]
[1768204983707,0.13954876,3139.0,3137.4,0.14171432]
[1768204984008,0.86885037,3138.9,3137.4,0.30128432]
[1768204984204,0.86885037,3138.8,3137.4,0.30128432]
[1768204984403,0.86885037,3138.7,3137.4,0.30128432]
[1768204984604,0.13954876,3139.0,3137.4,0.30128432]
[1768204984904,0.86982731,3138.9,3137.4,0.30128432]
[1768204985103,0.86982731,3138.8,3137.4,0.30128432]
[1768204985401,0.86982731,3138.7,3137.4,0.30128432]
[1768204985605,0.86982731,3138.6,3137.4,0.30128432]
[1768204985808,0.13954876,3139.0,3137.4,0.30128432]
[1768204986009,0.86926578,3138.9,3137.4,0.30128432]
[1768204986197,0.86926578,3138.8,3137.4,0.30128432]
[1768204986397,0.86926578,3138.7,3137.4,0.30128432]
[1768204986614,0.86926578,3138.6,3137.4,0.30128432]
[1768204986807,0.13954876,3139.0,3137.4,0.30128432]
[1768204987106,0.87035625,3138.9,3137.4,0.30128432]
[1768204987306,0.87035625,3138.8,3137.4,0.30128432]
[1768204987509,0.87035625,3138.7,3137.4,0.30128432]
[1768204987806,0.87035625,3138.6,3137.4,0.30128432]
[1768204987998,0.87035625,3138.5,3137.4,0.30128432]
[1768204988197,0.13954876,3139.0,3137.4,0.15957]
[1768204988399,0.14077446,3138.8,3137.4,0.15957]
[1768204988595,0.14077446,3138.6,3136.6,0.15961]
[1768204988810,0.14077446,3138.4,3136.3,0.00294251]
[1768204989015,0.14077446,3138.2,3136.3,0.00294251]
[1768204989310,2.39703879,3138.0,3136.3,0.00294251]
[1768204989506,0.14077446,3137.8,3136.3,0.00294251]
[1768204989702,0.87132884,3137.9,3136.3,0.00294251]
[1768204989703,0.14077446,3137.6,3136.3,0.00294251]
[1768204989903,1.0121033,3137.5,3136.3,0.00294251]
[1768204990107,0.87132884,3137.4,3136.3,0.00294251]
[1768204990301,0.87132884,3137.3,3136.3,0.00294251]
[1768204990504,0.87132884,3137.2,3136.3,0.00294251]
[1768204990815,0.87132884,3137.1,3136.3,0.00294251]
[1768204991113,0.00367809,3137.1,3136.3,0.00294251]
[1768204991914,0.87127131,3137.0,3136.3,0.00294251]
[1768204992212,0.00367809,3137.1,3135.8,2.5172417]
[1768204992411,0.87127189,3137.0,3135.8,2.5172417]
[1768204992613,0.00367809,3137.1,3135.3,0.15967]
[1768204992614,1.00943418,3136.9,3135.3,0.15967]
[1768204992810,0.87123944,3136.8,3135.3,0.15967]
[1768204993003,0.87119544,3136.7,3135.3,0.15967]
[1768204993200,0.13819474,3136.9,3135.3,0.16344244]
[1768204993412,0.87104846,3136.8,3135.3,0.16344244]
[1768204993714,0.13819474,3136.9,3135.3,0.16344244]
[1768204994015,0.8710505,3136.8,3135.3,0.16344244]
[1768204994214,0.13819474,3136.9,3135.3,0.16344244]
[1768204994413,0.87091285,3136.8,3135.3,0.16344244]
[1768204994713,0.13819474,3136.9,3135.3,0.16344244]
[1768204994910,0.87091126,3136.8,3135.3,0.16344244]
[1768204995111,0.13819474,3136.9,3135.3,0.16344244]
[1768204995311,0.87057092,3136.8,3135.3,0.16344244]
[1768204995508,0.13819474,3136.9,3135.3,0.16344244]
[1768204995709,0.87057548,3136.8,3135.3,0.16344244]
[1768204995909,0.13819474,3136.9,3135.3,0.16344244]
[1768204996116,0.87057405,3136.8,3135.3,0.16344244]
[1768204996314,0.13819474,3136.9,3135.3,0.29898975]
[1768204996516,0.87024731,3136.8,3135.3,0.29898975]
[1768204996815,0.13819474,3136.9,3135.3,0.29898975]
[1768204997017,0.87023919,3136.8,3135.3,0.29898975]
[1768204997221,0.13819474,3136.9,3135.3,0.29898975]
[1768204997414,0.86991508,3136.8,3135.3,0.29898975]
[1768204997609,0.13819474,3136.9,3135.3,0.29898975]
[1768204997809,0.8699138,3136.8,3135.3,0.29898975]
[1768204998009,0.13819474,3136.9,3135.3,0.29898975]
[1768205000617,0.00367809,3137.1,3135.3,0.16344244]
[1768205000618,1.00731558,3136.8,3135.3,0.16344244]
[1768205000811,0.86912084,3136.7,3135.3,0.16344244]
[1768205001017,0.13819474,3136.8,3135.3,0.16344244]
[1768205001219,0.86890519,3136.7,3135.3,0.16344244]
[1768205001416,0.13819474,3136.8,3135.3,0.16344244]
[1768205001617,0.86877964,3136.7,3135.3,0.16344244]
[1768205001815,0.13819474,3136.8,3135.3,0.16344244]
[1768205002116,0.86878058,3136.7,3135.3,0.16344244]
[1768205002318,0.13819474,3136.8,3135.3,0.16344244]
[1768205002518,0.86850912,3136.7,3135.3,0.16344244]
[1768205002815,0.13819474,3136.8,3135.3,0.16344244]
[1768205003020,0.86850919,3136.7,3135.3,0.16344244]
[1768205003215,0.13819474,3136.8,3135.3,0.16344244]
[1768205003413,0.86833198,3136.7,3135.3,0.16344244]
[1768205003618,0.13819474,3136.8,3135.3,0.16344244]
[1768205003915,0.86833306,3136.7,3135.3,0.16344244]
[1768205004127,0.13819474,3136.8,3135.3,0.16344244]
[1768205004310,0.86832517,3136.7,3135.3,0.16344244]
[1768205004506,0.13819474,3136.8,3135.3,0.16344244]
[1768205004710,0.86832437,3136.7,3135.3,0.16344244]
[1768205004913,0.13819474,3136.8,3135.3,0.16344244]
[1768205005111,0.86832443,3136.7,3135.3,0.16344244]
[1768205005312,0.13819474,3136.8,3135.3,0.16344244]
[1768205005515,0.86825832,3136.7,3135.3,0.16344244]
[1768205005714,0.13819474,3136.8,3135.3,0.16344244]
[1768205005915,0.86825839,3136.7,3135.3,0.16344244]
[1768205006112,0.13819474,3136.8,3135.3,0.16344244]
[1768205006316,0.86831446,3136.7,3135.4,2.408]
[1768205006516,0.13819474,3136.8,3135.4,2.408]
[1768205006713,0.86831436,3136.7,3135.4,2.408]
[1768205006926,0.13819474,3136.8,3135.4,2.408]
[1768205007129,0.86831611,3136.7,3135.4,2.408]
[1768205007319,0.13819474,3136.8,3135.4,2.408]
[1768205007522,0.86844439,3136.7,3135.4,2.408]
[1768205007722,0.13819474,3136.8,3135.4,2.408]
[1768205008020,0.86844329,3136.7,3135.4,2.408]
[1768205008220,0.13819474,3136.8,3135.4,2.408]
[1768205008417,0.86874914,3136.7,3135.4,2.408]
[1768205008620,0.13819474,3136.8,3135.4,2.408]
[1768205008816,0.86874686,3136.7,3135.4,2.408]
[1768205009022,0.13819474,3136.8,3135.4,2.408]
[1768205009324,0.86874686,3136.7,3135.4,2.408]
[1768205009530,0.13819474,3136.8,3135.4,2.408]
[1768205009726,0.86916209,3136.7,3135.4,2.408]
[1768205009927,0.13819474,3136.8,3135.4,2.408]
[1768205010129,0.86916546,3136.7,3135.4,2.408]
[1768205010328,0.13819474,3136.8,3135.4,2.408]
[1768205010530,0.86920321,3136.7,3135.4,2.408]
[1768205010833,0.13819474,3136.8,3135.4,2.408]
[1768205011034,0.86920628,3136.7,3135.4,2.408]
[1768205011230,0.13819474,3136.8,3135.4,2.408]
[1768205011433,0.86945696,3136.7,3135.4,2.408]
[1768205011639,0.13819474,3136.8,3135.4,2.408]
[1768205011830,0.86945696,3136.7,3135.4,2.408]
[1768205012131,0.13819474,3136.8,3135.4,2.408]
[1768205012331,0.86976427,3136.7,3135.4,2.408]
[1768205012640,0.13819474,3136.8,3135.4,2.408]
[1768205012832,0.86976453,3136.7,3135.4,2.408]
[1768205013131,0.13819474,3136.8,3135.4,2.408]
[1768205013331,0.87013903,3136.7,3135.4,2.408]
[1768205013633,0.13819474,3136.8,3135.4,2.408]
[1768205013836,0.87012465,3136.7,3135.4,2.408]
[1768205014035,0.13819474,3136.8,3135.4,2.408]
[1768205014236,0.87057179,3136.7,3135.4,2.408]
[1768205014433,0.13819474,3136.8,3135.4,2.408]
[1768205014633,0.87057425,3136.7,3135.4,2.408]
[1768205014833,0.13819474,3136.8,3135.4,2.408]
[1768205015034,0.8705751,3136.7,3135.4,2.408]
[1768205015241,0.13819474,3136.8,3135.4,2.408]
[1768205015433,0.87113244,3136.7,3135.4,2.408]
[1768205015737,0.13819474,3136.8,3135.4,2.408]
[1768205016038,0.87179701,3136.7,3135.4,2.408]
[1768205016237,0.87179701,3136.6,3135.4,2.408]
[1768205016438,0.13819474,3136.8,3135.4,2.408]
[1768205016741,0.87250914,3136.7,3135.4,2.408]
[1768205016939,0.87250914,3136.6,3135.4,2.408]
[1768205017139,0.87375828,3136.5,3135.4,2.408]
[1768205017341,0.13819474,3136.8,3135.4,2.408]
[1768205017531,0.87385501,3136.7,3135.4,2.408]
[1768205017839,0.87385501,3136.6,3135.4,2.408]
[1768205018035,0.87385501,3136.5,3135.4,2.408]
[1768205018234,0.87385501,3136.4,3135.4,2.408]
[1768205018436,0.13819474,3136.8,3135.4,2.408]
[1768205018636,0.87539914,3136.7,3135.4,2.408]
[1768205018931,0.87539914,3136.6,3135.4,2.408]
[1768205019236,0.00367809,3137.1,3135.5,0.13508121]
[1768205019542,0.87592455,3137.0,3135.5,0.13508121]
[1768205019742,0.87592455,3136.9,3135.5,0.13508121]
[1768205019942,0.87592455,3136.8,3135.5,0.13508121]
[1768205020139,0.87592455,3136.7,3135.6,0.13508121]
[1768205020336,0.00367809,3137.1,3135.6,0.13508121]
[1768205020534,0.87621384,3137.0,3135.6,0.13508121]
[1768205020735,0.87621384,3136.9,3135.6,0.13508121]
[1768205020936,0.87621384,3136.8,3135.6,0.13508121]
[1768205021130,0.87621384,3136.7,3135.6,0.13508121]
[1768205021332,0.00367809,3137.1,3135.6,0.13508121]
[1768205021537,0.87636973,3137.0,3135.6,0.13508121]
[1768205021835,0.87636973,3136.9,3135.6,0.13508121]
[1768205022035,0.87636973,3136.8,3135.6,0.13508121]
[1768205022238,0.87636973,3136.7,3135.6,0.13508121]
[1768205022436,0.00367809,3137.1,3135.6,0.13508121]
[1768205022637,0.87671228,3137.0,3135.6,0.13508121]
[1768205022848,0.87671228,3136.9,3135.8,0.13508121]
[1768205023143,0.00367809,3137.1,3135.8,0.13508121]
[1768205023444,0.87662455,3137.0,3135.8,0.13508121]
[1768205023646,0.87662455,3136.9,3135.8,0.13508121]
[1768205023845,0.00367809,3137.1,3135.8,0.13508121]
[1768205024043,0.87662133,3137.0,3135.8,0.13508121]
[1768205024240,0.87662133,3136.9,3135.8,0.13508121]
[1768205024447,0.00367809,3137.1,3135.8,0.13508121]
[1768205024743,0.87646057,3137.0,3135.8,0.13508121]
[1768205024947,0.87646057,3136.9,3135.8,0.13508121]
[1768205025148,0.00367809,3137.1,3135.8,0.13508121]
[1768205025348,0.87632833,3137.0,3135.8,0.13508121]
[1768205025544,0.87632833,3136.9,3135.8,0.13508121]
[1768205025844,0.00367809,3137.1,3136.0,0.13508121]
[1768205026248,2.39698089,3138.0,3136.0,0.13508121]
[1768205026550,0.87612044,3137.9,3136.2,0.13508121]
[1768205026758,0.87612044,3137.8,3136.4,0.13508121]
[1768205026958,0.87612044,3137.7,3136.5,2.414]
[1768205027156,0.87612044,3137.6,3136.5,2.414]
[1768205027359,0.00412011,3137.7,3136.5,4.36804691]
[1768205030064,0.00412011,3137.7,3136.5,4.50312812]
[1768205031649,0.00412011,3137.7,3136.6,0.13508121]
[1768205031961,0.14071656,3139.0,3137.5,1.95404691]
[1768205032152,0.87443226,3138.9,3137.5,1.95404691]
[1768205032352,0.14071656,3139.0,3137.5,1.95404691]
[1768205032353,0.87443226,3138.8,3137.5,1.95404691]
[1768205032553,0.87443226,3138.7,3137.5,1.95404691]
[1768205032763,0.87443226,3138.6,3137.5,1.95700452]
[1768205032955,0.87443226,3138.5,3137.5,1.95700452]
[1768205033260,0.0031512,3138.7,3137.5,1.95700452]
[1768205033557,0.87327415,3138.6,3137.5,1.95700452]
[1768205033763,0.87325332,3138.5,3137.5,0.00295761]
[1768205034060,0.0031512,3138.7,3137.5,0.00295761]
[1768205034261,0.87287398,3138.6,3137.5,0.00295761]
[1768205034461,0.0031512,3138.7,3137.5,0.00295761]
[1768205034758,0.8728766,3138.6,3137.5,0.00295761]
[1768205034960,0.0031512,3138.7,3137.5,0.00295761]
[1768205035160,0.87287669,3138.6,3137.5,0.00295761]
[1768205035355,0.0031512,3138.7,3138.0,1.22075611]
[1768205035662,0.87256846,3138.6,3138.0,1.22075611]
[1768205035863,0.0031512,3138.7,3138.0,1.22075611]
[1768205036066,0.87256848,3138.6,3138.0,1.22075611]
[1768205036265,0.0031512,3138.7,3138.0,1.22075611]
[1768205036562,0.87232542,3138.6,3138.0,1.22075611]
[1768205036756,0.0031512,3138.7,3138.0,1.22075611]
[1768205036955,0.0031512,3138.7,3138.2,1.22075611]
[1768205037357,0.0031512,3138.7,3137.8,1.22075611]
[1768205037557,0.14386776,3138.7,3137.6,1.22075611]
[1768205037761,0.14071656,3138.5,3137.3,1.22075611]
[1768205037957,0.14071656,3138.3,3137.5,1.22075611]
[1768205038959,0.14071656,3138.3,3137.5,1.22462471]
[1768205039155,0.0031512,3138.7,3137.9,1.22075611]
[1768205039354,0.8719835,3138.6,3137.5,0.0038686]
[1768205039668,0.8719835,3138.5,3137.5,0.0038686]
[1768205039867,0.0031512,3138.7,3137.5,0.0038686]
[1768205040167,0.8720078,3138.6,3137.5,0.0038686]
[1768205040369,0.0031512,3138.7,3137.5,0.0038686]
[1768205040568,0.87202162,3138.6,3137.5,0.0038686]
[1768205040864,0.87199893,3138.5,3137.5,0.0038686]
[1768205041068,1.01265966,3138.4,3137.5,0.0038686]
[1768205041369,0.14071656,3138.4,3137.5,0.0038686]
[1768205041663,1.01270866,3138.3,3137.5,0.0038686]
[1768205041868,0.14071656,3138.2,3136.7,2.404]
[1768205042067,0.14071656,3138.2,3136.5,2.53908121]
[1768205042864,0.14071656,3138.2,3136.5,2.54219059]
[1768205043070,0.14071656,3138.2,3136.6,0.13508121]
[1768205043271,0.14071656,3138.6,3136.9,1.9532332]
[1768205043474,0.87226816,3138.5,3136.9,2.08831441]
[1768205043675,0.87226816,3138.4,3137.0,0.13508121]
[1768205043872,0.87226816,3138.3,3137.0,0.13508121]
[1768205044068,0.14071656,3138.6,3137.0,0.13508121]
[1768205044374,0.87240978,3138.5,3137.0,0.13508121]
[1768205044566,0.87240978,3138.4,3137.0,0.13508121]
[1768205044870,0.87240978,3138.3,3137.0,0.13508121]
[1768205045073,0.14071656,3138.6,3137.0,0.13508121]
[1768205045264,0.87263288,3138.5,3137.0,0.13508121]
[1768205055578,0.87263288,3138.5,3137.4,1.9532332]
[1768205055779,0.87263288,3138.4,3137.4,1.9532332]
[1768205055980,0.14077884,3138.2,3136.7,0.1596]
[1768205056170,0.14077884,3138.2,3136.5,0.00310938]
[1768205056171,0.14077884,3138.0,3136.5,0.00310938]
[1768205056370,0.14077884,3137.8,3136.5,0.00310938]
[1768205056574,0.14077884,3137.6,3136.5,0.00310938]
[1768205056779,0.14077884,3137.4,3136.5,0.00310938]
[1768205056980,0.87263288,3137.3,3136.5,0.00310938]
[1768205057175,1.01341172,3137.3,3136.5,0.00310938]
[1768205057381,0.87263288,3137.2,3136.5,0.00310938]
[1768205059682,0.87263288,3137.1,3136.5,0.00310938]
[1768205059870,0.14077884,3137.7,3136.5,0.00310938]
[1768205060073,1.01585525,3137.6,3136.5,0.00310938]
[1768205060270,1.01585525,3137.5,3136.5,0.00310938]
[1768205060482,0.14077884,3137.3,3136.5,0.00310938]
[1768205060685,0.87507641,3137.2,3135.8,2.08968291]
[1768205060986,0.87507641,3137.1,3135.8,2.08968291]
[1768205061182,0.14077884,3137.3,3135.8,2.08968291]
[1768205061383,0.87448506,3137.2,3135.8,2.08968291]
[1768205061584,0.87448506,3137.1,3135.8,2.08968291]
[1768205061781,0.14077884,3137.3,3135.8,2.09258306]
[1768205061985,0.87448797,3137.2,3135.8,2.09258306]
[1768205062285,0.87448797,3137.1,3135.8,2.09258306]
[1768205062484,0.14077884,3137.3,3135.8,2.09258306]
[1768205062685,0.87428247,3137.2,3135.8,4.48558306]
[1768205062887,0.87428247,3137.1,3135.8,4.48558306]
[1768205063080,0.14077884,3137.3,3135.8,4.48558306]
[1768205063279,0.87429124,3137.2,3135.8,4.48558306]
[1768205063482,0.14077884,3137.7,3135.9,0.13644971]
[1768205063684,0.87414961,3137.6,3135.9,0.13644971]
[1768205063983,0.87414961,3137.5,3135.9,0.13644971]
[1768205064183,0.87414961,3137.4,3135.9,0.13644971]
[1768205064385,0.87414961,3137.3,3135.9,0.13644971]
[1768205064584,0.87414961,3137.2,3135.9,0.13644971]
[1768205064784,0.14077884,3137.7,3136.3,1.9532332]
[1768205064988,0.87409343,3137.6,3136.3,1.9532332]
[1768205065187,0.87409343,3137.5,3136.3,1.9532332]
[1768205065382,0.87409343,3137.4,3136.3,1.9532332]
[1768205065583,0.87409343,3137.3,3136.3,1.9532332]
[1768205065881,0.14077884,3137.7,3136.3,1.9532332]
[1768205066078,0.87407884,3137.6,3136.3,1.9532332]
[1768205066273,0.87407884,3137.5,3136.3,1.9532332]
[1768205066475,0.87407884,3137.4,3136.3,1.9532332]
[1768205066679,0.87407884,3137.3,3136.3,1.9532332]
[1768205066882,0.14077884,3137.7,3136.3,1.9532332]
[1768205067088,0.87409131,3137.6,3136.3,1.9532332]
[1768205067387,0.14077884,3137.4,3135.8,2.39590015]
[1768205067584,0.14077884,3137.2,3136.2,1.22157331]
[1768205067784,0.87409131,3137.1,3136.4,1.22157331]
[1768205067986,0.87409131,3137.0,3136.4,1.22157331]
[1768205068290,0.87409131,3136.9,3136.4,1.22157331]
[1768205068490,0.14077884,3137.2,3136.4,1.22157331]
[1768205068791,0.87382325,3137.1,3136.4,1.22157331]
[1768205069090,0.14077884,3137.2,3136.4,1.22157331]
[1768205069091,0.87382325,3137.0,3136.4,1.22157331]
[1768205069389,0.14077884,3137.2,3135.8,0.00290015]
[1768205069582,0.87369531,3137.1,3135.9,0.13644971]
[1768205069882,0.14077884,3137.6,3135.9,0.13644971]
[1768205070085,0.87373637,3137.5,3135.9,0.13644971]
[1768205070290,0.87373637,3137.4,3135.9,0.13644971]
[1768205070593,0.87373637,3137.3,3135.9,0.13644971]
[1768205070788,0.87368347,3137.2,3135.9,0.13644971]
[1768205071088,0.87368347,3137.1,3135.9,0.13644971]
[1768205071292,0.14077884,3137.5,3135.9,0.13644971]
[1768205071489,0.87361995,3137.4,3135.9,0.13644971]
[1768205071690,0.87361995,3137.3,3135.9,0.13644971]
[1768205071888,0.87361995,3137.2,3135.9,0.13644971]
[1768205072193,0.87361995,3137.1,3135.9,0.13644971]
[1768205072393,0.14077884,3137.5,3135.9,0.13644971]
[1768205072690,0.87355273,3137.4,3135.9,0.13644971]
[1768205072890,0.87355273,3137.3,3135.9,0.13644971]
[1768205073089,0.87355273,3137.2,3135.9,0.13644971]
[1768205073291,0.87355273,3137.1,3135.9,0.13644971]
[1768205073591,0.14077884,3137.5,3135.9,0.13644971]
[1768205073789,0.87349476,3137.4,3135.9,0.13644971]
[1768205073989,0.87349476,3137.3,3135.9,0.13644971]
[1768205074192,0.87349476,3137.2,3135.9,0.13644971]
[1768205074386,0.87349476,3137.2,3135.8,0.00290015]
[1768205074387,0.13221582,3137.0,3135.8,0.00290015]
[1768205074592,0.13221582,3136.8,3135.0,1.95502926]
[1768205074887,1.03309476,3136.9,3135.2,2.39]
[1768205074888,0.13221582,3136.6,3135.2,2.39]
[1768205075090,0.87349476,3136.5,3135.2,2.39]
[1768205075296,0.87349476,3136.4,3135.2,2.39]
[1768205075485,0.00400158,3136.4,3135.2,2.39294526]
[1768205078899,0.00400158,3136.4,3135.2,0.00294526]
[1768205079096,0.00400158,3136.4,3135.3,2.396]
[1768205081795,0.13221582,3136.2,3135.1,0.1]
[1768205082002,0.13221582,3135.8,3134.0,1.88489405]
[1768205082189,1.0041984,3135.7,3134.2,1.95502926]
[1768205082495,0.87198258,3135.6,3134.2,1.95502926]
[1768205082704,0.87198258,3135.5,3134.2,1.95502926]
[1768205082903,0.00400158,3136.4,3134.2,2.19973091]
[1768205082904,0.87198258,3135.4,3134.2,2.19973091]
[1768205083100,0.13221582,3136.1,3134.2,2.19973091]
[1768205083101,0.13221582,3136.1,3134.2,2.09973091]
[1768205083399,0.00400158,3136.4,3134.2,2.09973091]
[1768205083400,0.13221582,3135.9,3134.2,2.09973091]
[1768205083702,0.89536764,3135.8,3134.2,2.09973091]
[1768205083902,0.89536764,3135.7,3134.2,2.19973091]
[1768205084202,0.89536764,3135.6,3134.2,2.19973091]
[1768205084503,0.89536764,3135.5,3134.2,2.19973091]
[1768205084696,0.89536764,3135.4,3134.2,2.19973091]
[1768205084902,0.13221582,3135.9,3134.2,2.19973091]
[1768205085104,0.89499202,3135.8,3134.2,2.19973091]
[1768205085304,0.89499202,3135.7,3134.2,2.19973091]
[1768205085498,0.89499202,3135.6,3134.2,2.19973091]
[1768205085704,0.89499202,3135.5,3134.2,2.19973091]
[1768205085904,0.89499202,3135.4,3134.2,2.19973091]
[1768205086101,0.13221582,3135.9,3134.3,0.14200964]
[1768205086406,0.89507218,3135.8,3134.3,0.14200964]
[1768205086606,0.89507218,3135.7,3134.3,0.14200964]
[1768205086799,0.89507218,3135.6,3134.3,0.14200964]
[1768205087107,0.89507218,3135.5,3134.3,0.14200964]